fUST/lending_fUST_20250725
["ID","MTS","AMOUNT","RATE_DAILY","PERIOD"]
[374684611,1753413038972,-460.0,0.00017391,2]
[374684612,1753413038982,-460.0,0.00017391,2]
[374684613,1753413038991,-460.0,0.00017391,2]
[374684614,1753413039002,-1273.31,0.00017391,2]
[374684615,1753413039020,-460.0,0.00017391,2]
[374684616,1753413039030,-495.47,0.00017391,2]
[374684617,1753413039039,-1322.49,0.00017391,2]
[374684618,1753413039054,-460.0,0.00017391,2]
[374684619,1753413039063,-623.94,0.00017391,2]
[374684620,1753413039073,-460.0,0.00017391,2]
[374684621,1753413039082,-460.0,0.00017391,2]
[374684622,1753413039092,-460.0,0.00017391,2]
[374684623,1753413039102,-460.0,0.00017391,2]
[374684624,1753413039112,-460.0,0.00017391,2]
[374684625,1753413039126,-460.0,0.00017391,2]
[374684626,1753413039136,-460.0,0.00017391,2]
[374684627,1753413039146,-1123.15,0.00017391,2]
[374684629,1753413039157,-460.0,0.00017391,2]
[374684631,1753413039167,-460.0,0.00017391,2]
[374684633,1753413039177,-537.20038046,0.00017392,2]
[374684635,1753413039188,-460.0,0.00017392,2]
[374684637,1753413039198,-460.0,0.00017392,2]
[374684639,1753413039208,-460.0,0.00017392,2]
[374684640,1753413039218,-200.96238211,0.00017392,2]
[374684641,1753413039227,-460.0,0.00017392,2]
[374684642,1753413039237,-383.55318024,0.00017392,2]
[374684643,1753413039247,-460.0,0.00017392,2]
[374684644,1753413039257,-460.0,0.00017392,2]
[374684645,1753413039267,-463.13712576,0.00017392,2]
[374684646,1753413039277,-462.16988816,0.00017392,2]
[374684647,1753413039286,-460.0,0.00017392,2]
[374684648,1753413039299,-460.0,0.00017392,2]
[374684649,1753413039309,-460.0,0.00017392,2]
[374684650,1753413039319,-460.0,0.00017392,2]
[374684651,1753413039329,-460.0,0.00017392,2]
[374684652,1753413039338,-460.0,0.00017392,2]
[374684653,1753413039349,-467.09929477,0.00017392,2]
[374684654,1753413039359,-460.0,0.00017392,2]
[374684655,1753413039369,-460.0,0.00017392,2]
[374684656,1753413039380,-460.0,0.00017392,2]
[374684657,1753413039390,-460.0,0.00017392,2]
[374684658,1753413039399,-460.0,0.00017392,2]
[374684659,1753413039409,-460.0,0.00017392,2]
[374684660,1753413039419,-460.0,0.00017392,2]
[374684661,1753413039428,-811.88,0.00017392,2]
[374684662,1753413039439,-460.0,0.00017392,2]
[374684663,1753413039458,-460.0,0.00017392,2]
[374684664,1753413039481,-460.0,0.00017392,2]
[374684665,1753413039495,-460.0,0.00017392,2]
[374684666,1753413039504,-460.0,0.00017392,2]
[374684667,1753413039514,-485.53,0.00017392,2]
[374684668,1753413039524,-682.55,0.00017392,2]
[374684669,1753413039533,-460.0,0.00017392,2]
[374684670,1753413039549,-460.0,0.00017392,2]
[374684671,1753413039564,-540.23232173,0.00017392,2]
[374684672,1753413039574,-460.0,0.00017392,2]
[374684673,1753413039585,-460.0,0.00017392,2]
[374684674,1753413039595,-1105.84,0.00017392,2]
[374684675,1753413039607,-460.0,0.00017392,2]
[374684676,1753413039618,-460.0,0.00017392,2]
[374684677,1753413039627,-460.0,0.00017392,2]
[374684678,1753413039637,-1999.76,0.00017392,2]
[374684679,1753413039647,-460.0,0.00017392,2]
[374684680,1753413039657,-460.0,0.00017392,2]
[374684681,1753413039668,-460.0,0.00017392,2]
[374684682,1753413039680,-775.94,0.00017392,2]
[374684683,1753413039691,-460.0,0.00017392,2]
[374684684,1753413039703,-460.0,0.00017392,2]
[374684685,1753413039713,-460.0,0.00017392,2]
[374684686,1753413039723,-460.0,0.00017392,2]
[374684687,1753413039733,-460.0,0.00017392,2]
[374684688,1753413039742,-572.18,0.00017392,2]
[374684689,1753413039753,-460.0,0.00017392,2]
[374684690,1753413039764,-460.0,0.00017392,2]
[374684691,1753413039775,-460.0,0.00017392,2]
[374684692,1753413039785,-1380.02,0.00017392,2]
[374684693,1753413039795,-460.0,0.00017392,2]
[374684694,1753413039808,-508.82,0.00017392,2]
[374684695,1753413039819,-460.0,0.00017392,2]
[374684696,1753413039829,-460.0,0.00017392,2]
[374684697,1753413039839,-593.98,0.00017392,2]
[374684698,1753413039849,-1059.98,0.00017392,2]
[374684699,1753413039859,-572.37,0.00017392,2]
[374684700,1753413039869,-499.64,0.00017392,2]
[374684701,1753413039878,-1304.1,0.00017392,2]
[374684702,1753413039889,-460.0,0.00017392,2]
[374684703,1753413039898,-838.96,0.00017392,2]
[374684704,1753413039909,-460.0,0.00017392,2]
[374684705,1753413039919,-345.63354412,0.00017392,2]
[374684706,1753413039929,-631.7,0.00017392,2]
[374684707,1753413039938,-1408.64,0.00017392,2]
[374684708,1753413039948,-460.0,0.00017392,2]
[374684709,1753413039958,-460.0,0.00017392,2]
[374684710,1753413039968,-2590.99,0.00017392,2]
[374684711,1753413039978,-460.0,0.00017392,2]
[374684712,1753413039987,-460.0,0.00017392,2]
[374684713,1753413039998,-460.0,0.00017392,2]
[374684714,1753413040008,-460.0,0.00017392,2]
[374684715,1753413040018,-460.0,0.00017392,2]
[374684716,1753413040028,-460.0,0.00017392,2]
[374684717,1753413040038,-460.0,0.00017501,2]
[374684718,1753413040049,-460.0,0.00017665,2]
[374684719,1753413040059,-460.0,0.00017665,2]
[374684720,1753413040069,-460.0,0.00017665,2]
[374684721,1753413040079,-460.0,0.00017665,2]
[374684722,1753413040089,-460.0,0.00017665,2]
[374684723,1753413040099,-460.0,0.00017665,2]
[374684724,1753413040109,-460.0,0.00017665,2]
[374684725,1753413040124,-189.14735661,0.00017665,2]
[374684726,1753413040133,-534.09,0.00017665,2]
[374684727,1753413040143,-3269.13,0.00017665,2]
[374684728,1753413040153,-303.18344902,0.00017665,2]
[374684729,1753413040406,-156.81655098,0.00017665,2]
[374684730,1753413040417,-460.0,0.00017665,2]
[374684731,1753413040427,-2004.64,0.00017665,2]
[374684732,1753413040436,-460.0,0.00017665,2]
[374684733,1753413040446,-460.0,0.00017665,2]
[374684734,1753413040456,-460.0,0.00017665,2]
[374684735,1753413040466,-460.0,0.00017665,2]
[374684736,1753413040475,-1273.31,0.00017665,2]
[374684737,1753413040485,-495.47,0.00017665,2]
[374684738,1753413040494,-1322.49,0.00017665,2]
[374684739,1753413040503,-460.0,0.00017665,2]
[374684740,1753413040513,-623.94,0.00017665,2]
[374684741,1753413040522,-460.0,0.00017665,2]
[374684742,1753413040532,-460.0,0.00017665,2]
[374684743,1753413040541,-460.0,0.00017665,2]
[374684744,1753413040553,-460.0,0.00017665,2]
[374684745,1753413040562,-460.0,0.00017665,2]
[374684746,1753413040572,-460.0,0.00017665,2]
[374684747,1753413040582,-460.0,0.00017665,2]
[374684748,1753413040592,-1123.15,0.00017665,2]
[374684749,1753413040602,-460.0,0.00017665,2]
[374684750,1753413040611,-460.0,0.00017665,2]
[374684751,1753413040621,-433.05266839,0.00017666,2]
[374684752,1753413040631,-460.0,0.00017666,2]
[374684753,1753413040641,-460.0,0.00017666,2]
[374684754,1753413040651,-460.0,0.00017666,2]
[374684755,1753413040660,-460.0,0.00017666,2]
[374684756,1753413040670,-460.0,0.00017666,2]
[374684757,1753413040679,-460.0,0.00017666,2]
[374684758,1753413040689,-219.11596644,0.00017666,2]
[374684759,1753413040700,-460.0,0.00017666,2]
[374684760,1753413040710,-460.0,0.00017666,2]
[374684761,1753413040719,-460.0,0.00017666,2]
[374684762,1753413040729,-460.0,0.00017666,2]
[374684763,1753413040739,-460.0,0.00017666,2]
[374684764,1753413040748,-460.0,0.00017666,2]
[374684765,1753413040758,-194.7901089,0.00017666,2]
[374684766,1753413040767,-811.88,0.00017666,2]
[374684767,1753413040777,-460.0,0.00017666,2]
[374684768,1753413040787,-460.0,0.00017666,2]
[374684769,1753413040796,-485.53,0.00017666,2]
[374684770,1753413040807,-682.55,0.00017666,2]
[374684771,1753413040818,-460.0,0.00017666,2]
[374684772,1753413040828,-460.0,0.00017666,2]
[374684773,1753413040838,-460.0,0.00017666,2]
[374684774,1753413040847,-460.0,0.00017666,2]
[374684775,1753413040857,-1105.84,0.00017666,2]
[374684776,1753413040866,-460.0,0.00017666,2]
[374684777,1753413040876,-460.0,0.00017666,2]
[374684778,1753413040886,-460.0,0.00017666,2]
[374684779,1753413040896,-1999.76,0.00017666,2]
[374684780,1753413040905,-460.0,0.00017666,2]
[374684781,1753413040915,-460.0,0.00017666,2]
[374684782,1753413040924,-775.94,0.00017666,2]
[374684783,1753413040934,-460.0,0.00017666,2]
[374684784,1753413040944,-460.0,0.00017666,2]
[374684785,1753413040953,-460.0,0.00017666,2]
[374684786,1753413040963,-572.18,0.00017666,2]
[374684787,1753413040972,-460.0,0.00017666,2]
[374684788,1753413040982,-460.0,0.00017666,2]
[374684789,1753413040991,-1380.02,0.00017666,2]
[374684790,1753413041001,-508.82,0.00017666,2]
[374684791,1753413041011,-460.0,0.00017666,2]
[374684792,1753413041021,-593.98,0.00017666,2]
[374684793,1753413041031,-1059.98,0.00017666,2]
[374684794,1753413041041,-572.37,0.00017666,2]
[374684795,1753413041052,-499.64,0.00017666,2]
[374684796,1753413041061,-1304.1,0.00017666,2]
[374684797,1753413041071,-460.0,0.00017666,2]
[374684798,1753413041081,-838.96,0.00017666,2]
[374684799,1753413041090,-631.7,0.00017666,2]
[374684800,1753413041100,-1408.64,0.00017666,2]
[374684801,1753413041110,-598.269486,0.00017666,2]
[374684802,1753413041125,-460.0,0.00017666,2]
[374684803,1753413041135,-2590.99,0.00017666,2]
[374684805,1753413041145,-460.0,0.00017666,2]
[374684807,1753413041154,-460.0,0.00017666,2]
[374684808,1753413041165,-460.0,0.00017666,2]
[374684809,1753413041175,-460.0,0.00017666,2]
[374684810,1753413041185,-460.0,0.00017666,2]
[374684812,1753413041195,-365.47651421,0.00017773,2]
[374684814,1753413041205,-1544.37202296,0.00017773,2]
[374684816,1753413041216,-460.0,0.00017775,2]
[374684818,1753413041225,-203.42144882,0.00017839,2]
[374684820,1753413041234,-370000.0,0.0001784,2]
[374684822,1753413041243,-500.0,0.00017873,2]
[374684824,1753413041253,-500.0,0.00017873,2]
[374684826,1753413041264,-183.40307533,0.00017873,2]
[374684828,1753413041275,-500.0,0.00017873,2]
[374684830,1753413041291,-500.0,0.00017873,2]
[374684832,1753413041310,-500.0,0.00017873,2]
[374684834,1753413041320,-500.9976618,0.00017873,2]
[374684836,1753413041330,-500.85773411,0.00017873,2]
[374684838,1753413041339,-500.0,0.00017873,2]
[374684840,1753413041350,-500.0,0.00017873,2]
[374684842,1753413041359,-501.08613009,0.00017873,2]
[374684844,1753413041369,-460.0,0.00017939,2]
[374684846,1753413041380,-460.0,0.00017939,2]
[374684848,1753413041390,-460.0,0.00017939,2]
[374684850,1753413041400,-460.0,0.00017939,2]
[374684852,1753413041410,-460.0,0.00017939,2]
[374684854,1753413041419,-460.0,0.00017939,2]
[374684856,1753413041428,-460.0,0.00017939,2]
[374684858,1753413041438,-534.09,0.00017939,2]
[374684860,1753413041447,-3269.13,0.00017939,2]
[374684862,1753413041457,-181.43023672,0.00017939,2]
[374684864,1753413041466,-460.0,0.00017939,2]
[374684866,1753413041476,-2004.64,0.00017939,2]
[374684868,1753413041485,-460.0,0.00017939,2]
[374684870,1753413041496,-460.0,0.00017939,2]
[374684872,1753413041505,-460.0,0.00017939,2]
[374684874,1753413041515,-460.0,0.00017939,2]
[374684876,1753413041525,-1273.31,0.00017939,2]
[374684878,1753413041535,-495.47,0.00017939,2]
[374684880,1753413041544,-1322.49,0.00017939,2]
[374684882,1753413041557,-460.0,0.00017939,2]
[374684884,1753413041567,-623.94,0.00017939,2]
[374684886,1753413041577,-333.2297779,0.00017939,2]
[374684888,1753413041586,-460.0,0.00017939,2]
[374684890,1753413041596,-460.0,0.00017939,2]
[374684892,1753413041606,-460.0,0.00017939,2]
[374684895,1753413041618,-460.0,0.00017939,2]
[374684897,1753413041638,-460.0,0.00017939,2]
[374684898,1753413041648,-460.0,0.00017939,2]
[374684900,1753413041658,-1123.15,0.00017939,2]
[374684903,1753413041668,-460.0,0.00017939,2]
[374684905,1753413041678,-460.0,0.00017939,2]
[374684906,1753413041687,-460.0,0.0001794,2]
[374684908,1753413041697,-460.0,0.0001794,2]
[374684910,1753413041707,-460.0,0.0001794,2]
[374684913,1753413041717,-460.0,0.0001794,2]
[374684914,1753413041727,-460.0,0.0001794,2]
[374684917,1753413041737,-460.0,0.0001794,2]
[374684919,1753413041747,-460.0,0.0001794,2]
[374684921,1753413041756,-460.0,0.0001794,2]
[374684923,1753413041766,-460.0,0.0001794,2]
[374684925,1753413041775,-460.0,0.0001794,2]
[374684927,1753413041784,-460.0,0.0001794,2]
[374684928,1753413041794,-460.0,0.0001794,2]
[374684930,1753413041807,-811.88,0.0001794,2]
[374684933,1753413041817,-460.0,0.0001794,2]
[374684935,1753413041827,-485.53,0.0001794,2]
[374684936,1753413041837,-682.55,0.0001794,2]
[374684938,1753413041846,-529.81512864,0.0001794,2]
[374684940,1753413041856,-460.0,0.0001794,2]
[374684942,1753413041865,-460.0,0.0001794,2]
[374684944,1753413041875,-460.0,0.0001794,2]
[374684946,1753413041885,-1105.84,0.0001794,2]
[374684949,1753413041895,-460.0,0.0001794,2]
[374684950,1753413041904,-460.0,0.0001794,2]
[374684953,1753413041915,-1999.76,0.0001794,2]
[374684954,1753413041925,-460.0,0.0001794,2]
[374684956,1753413041935,-460.0,0.0001794,2]
[374684958,1753413041945,-775.94,0.0001794,2]
[374684960,1753413041955,-460.0,0.0001794,2]
[374684962,1753413041964,-460.0,0.0001794,2]
[374684964,1753413041973,-460.0,0.0001794,2]
[374684966,1753413041982,-572.18,0.0001794,2]
[374684968,1753413041992,-460.0,0.0001794,2]
[374684970,1753413042001,-460.0,0.0001794,2]
[374684972,1753413042011,-1380.02,0.0001794,2]
[374684974,1753413042020,-508.82,0.0001794,2]
[374684976,1753413042030,-460.0,0.0001794,2]
[374684978,1753413042040,-593.98,0.0001794,2]
[374684980,1753413042050,-1059.98,0.0001794,2]
[374684982,1753413042060,-572.37,0.0001794,2]
[374684984,1753413042070,-499.64,0.0001794,2]
[374684986,1753413042080,-1304.1,0.0001794,2]
[374684988,1753413042089,-460.0,0.0001794,2]
[374684990,1753413042100,-838.96,0.0001794,2]
[374684992,1753413042110,-631.7,0.0001794,2]
[374684994,1753413042127,-1408.64,0.0001794,2]
[374684996,1753413042137,-460.0,0.0001794,2]
[374684998,1753413042147,-2590.99,0.0001794,2]
[374685017,1753413042314,-460.0,0.0001794,2]
[374685019,1753413042325,-460.0,0.0001794,2]
[374685021,1753413042335,-460.0,0.0001794,2]
[374685023,1753413042345,-460.0,0.0001794,2]
[374685025,1753413042354,-460.0,0.0001794,2]
[374685027,1753413042364,-360.88076077,0.00018213,2]
[374685029,1753413042374,-460.0,0.00018213,2]
[374685031,1753413042383,-460.0,0.00018213,2]
[374685033,1753413042393,-460.0,0.00018213,2]
[374685035,1753413042403,-460.0,0.00018213,2]
[374685037,1753413042413,-460.0,0.00018213,2]
[374685039,1753413042422,-460.0,0.00018213,2]
[374685041,1753413042432,-534.09,0.00018213,2]
[374685043,1753413042441,-3269.13,0.00018213,2]
[374685045,1753413042451,-460.0,0.00018213,2]
[374685047,1753413042460,-2004.64,0.00018213,2]
[374685049,1753413042469,-460.0,0.00018213,2]
[374685051,1753413042480,-460.0,0.00018213,2]
[374685053,1753413042489,-460.0,0.00018213,2]
[374685055,1753413042499,-460.0,0.00018213,2]
[374685057,1753413042508,-1273.31,0.00018213,2]
[374685059,1753413042518,-495.47,0.00018213,2]
[374685061,1753413042527,-1322.49,0.00018213,2]
[374685063,1753413042537,-460.0,0.00018213,2]
[374685065,1753413042547,-623.94,0.00018213,2]
[374685067,1753413042556,-460.0,0.00018213,2]
[374685069,1753413042565,-460.0,0.00018213,2]
[374685071,1753413042574,-460.0,0.00018213,2]
[374685073,1753413042584,-460.0,0.00018213,2]
[374685075,1753413042593,-460.0,0.00018213,2]
[374685077,1753413042603,-460.0,0.00018213,2]
[374685079,1753413042612,-1123.15,0.00018213,2]
[374685081,1753413042621,-460.0,0.00018213,2]
[374685083,1753413042631,-460.0,0.00018213,2]
[374685085,1753413042640,-460.0,0.00018214,2]
[374685087,1753413042650,-460.0,0.00018214,2]
[374685089,1753413042659,-460.0,0.00018214,2]
[374685091,1753413042669,-460.0,0.00018214,2]
[374685093,1753413042678,-333.38866103,0.00018214,2]
[374685095,1753413042687,-460.0,0.00018214,2]
[374685097,1753413042697,-465.43260636,0.00018214,2]
[374685099,1753413042707,-460.0,0.00018214,2]
[374685101,1753413042717,-460.0,0.00018214,2]
[374685103,1753413042726,-460.0,0.00018214,2]
[374685105,1753413042735,-460.0,0.00018214,2]
[374685107,1753413042745,-460.0,0.00018214,2]
[374685109,1753413042754,-811.88,0.00018214,2]
[374685110,1753413042763,-460.0,0.00018214,2]
[374685111,1753413042773,-485.53,0.00018214,2]
[374685112,1753413042782,-682.55,0.00018214,2]
[374685113,1753413042792,-460.0,0.00018214,2]
[374685114,1753413042803,-460.0,0.00018214,2]
[374685115,1753413042812,-460.0,0.00018214,2]
[374685116,1753413042822,-1105.84,0.00018214,2]
[374685118,1753413042832,-460.0,0.00018214,2]
[374685119,1753413042842,-460.0,0.00018214,2]
[374685121,1753413042851,-1999.76,0.00018214,2]
[374685122,1753413042862,-460.0,0.00018214,2]
[374685123,1753413042871,-460.0,0.00018214,2]
[374685124,1753413042881,-460.0,0.00018214,2]
[374685125,1753413042891,-460.0,0.00018214,2]
[374685126,1753413042901,-460.0,0.00018214,2]
[374685127,1753413042910,-775.94,0.00018214,2]
[374685128,1753413042920,-572.18,0.00018214,2]
[374685129,1753413042929,-460.0,0.00018214,2]
[374685130,1753413042940,-460.0,0.00018214,2]
[374685131,1753413042950,-1380.02,0.00018214,2]
[374685132,1753413042960,-508.82,0.00018214,2]
[374685133,1753413042970,-460.0,0.00018214,2]
[374685134,1753413042980,-593.98,0.00018214,2]
[374685135,1753413042989,-1059.98,0.00018214,2]
[374685136,1753413042999,-572.37,0.00018214,2]
[374685137,1753413043009,-499.64,0.00018214,2]
[374685138,1753413043020,-1304.1,0.00018214,2]
[374685139,1753413043030,-460.0,0.00018214,2]
[374685140,1753413043039,-838.96,0.00018214,2]
[374685141,1753413043052,-631.7,0.00018214,2]
[374685142,1753413043062,-460.0,0.00018214,2]
[374685143,1753413043074,-1408.64,0.00018214,2]
[374685144,1753413043084,-460.0,0.00018214,2]
[374685145,1753413043094,-2590.99,0.00018214,2]
[374685147,1753413043104,-460.0,0.00018214,2]
[374685148,1753413043114,-460.0,0.00018214,2]
[374685149,1753413043128,-460.0,0.00018214,2]
[374685150,1753413043138,-460.0,0.00018214,2]
[374685151,1753413043147,-1000.0,0.00018421,2]
[374685152,1753413043157,-533.85381126,0.00018421,2]
[374685153,1753413043167,-509.37952605,0.00018421,2]
[374685154,1753413043176,-1000.0,0.00018421,2]
[374685155,1753413043187,-460.0,0.00018487,2]
[374685156,1753413043196,-460.0,0.00018487,2]
[374685157,1753413043206,-460.0,0.00018487,2]
[374685158,1753413043216,-460.0,0.00018487,2]
[374685159,1753413043225,-460.0,0.00018487,2]
[374685160,1753413043234,-460.0,0.00018487,2]
[374685161,1753413043243,-534.09,0.00018487,2]
[374685162,1753413043253,-3269.13,0.00018487,2]
[374685163,1753413043262,-460.0,0.00018487,2]
[374685164,1753413043271,-2004.64,0.00018487,2]
[374685165,1753413043280,-460.0,0.00018487,2]
[374685167,1753413043290,-460.0,0.00018487,2]
[374685168,1753413043302,-460.0,0.00018487,2]
[374685169,1753413043312,-460.0,0.00018487,2]
[374685170,1753413043322,-1273.31,0.00018487,2]
[374685171,1753413043331,-495.47,0.00018487,2]
[374685172,1753413043340,-1322.49,0.00018487,2]
[374685174,1753413043349,-460.0,0.00018487,2]
[374685175,1753413043358,-623.94,0.00018487,2]
[374685176,1753413043369,-460.0,0.00018487,2]
[374685178,1753413043378,-460.0,0.00018487,2]
[374685179,1753413043387,-460.0,0.00018487,2]
[374685180,1753413043396,-460.0,0.00018487,2]
[374685181,1753413043406,-460.0,0.00018487,2]
[374685182,1753413043415,-460.0,0.00018487,2]
[374685183,1753413043425,-1123.15,0.00018487,2]
[374685184,1753413043434,-460.0,0.00018487,2]
[374685185,1753413043443,-460.0,0.00018487,2]
[374685186,1753413043452,-460.0,0.00018488,2]
[374685188,1753413043460,-460.0,0.00018488,2]
[374685190,1753413043470,-460.0,0.00018488,2]
[374685192,1753413043479,-460.0,0.00018488,2]
[374685193,1753413043489,-460.0,0.00018488,2]
[374685194,1753413043498,-460.0,0.00018488,2]
[374685195,1753413043507,-460.0,0.00018488,2]
[374685196,1753413043516,-460.0,0.00018488,2]
[374685197,1753413043525,-460.0,0.00018488,2]
[374685198,1753413043534,-460.0,0.00018488,2]
[374685199,1753413043543,-811.88,0.00018488,2]
[374685200,1753413043554,-460.0,0.00018488,2]
[374685201,1753413043564,-485.53,0.00018488,2]
[374685202,1753413043574,-682.55,0.00018488,2]
[374685203,1753413043583,-460.0,0.00018488,2]
[374685204,1753413043592,-460.0,0.00018488,2]
[374685205,1753413043602,-460.0,0.00018488,2]
[374685206,1753413043611,-1105.84,0.00018488,2]
[374685207,1753413043621,-460.0,0.00018488,2]
[374685208,1753413043630,-460.0,0.00018488,2]
[374685209,1753413043639,-1999.76,0.00018488,2]
[374685210,1753413043648,-460.0,0.00018488,2]
[374685211,1753413043658,-460.0,0.00018488,2]
[374685212,1753413043667,-460.0,0.00018488,2]
[374685213,1753413043677,-460.0,0.00018488,2]
[374685214,1753413043687,-460.0,0.00018488,2]
[374685215,1753413043697,-775.94,0.00018488,2]
[374685216,1753413043707,-572.18,0.00018488,2]
[374685217,1753413043718,-460.0,0.00018488,2]
[374685218,1753413043727,-460.0,0.00018488,2]
[374685219,1753413043736,-1380.02,0.00018488,2]
[374685220,1753413043746,-508.82,0.00018488,2]
[374685221,1753413043755,-460.0,0.00018488,2]
[374685222,1753413043764,-593.98,0.00018488,2]
[374685223,1753413043774,-1059.98,0.00018488,2]
[374685224,1753413043783,-572.37,0.00018488,2]
[374685225,1753413043793,-499.64,0.00018488,2]
[374685226,1753413043803,-1304.1,0.00018488,2]
[374685227,1753413043813,-460.0,0.00018488,2]
[374685228,1753413043822,-838.96,0.00018488,2]
[374685229,1753413043831,-631.7,0.00018488,2]
[374685230,1753413043841,-460.0,0.00018488,2]
[374685231,1753413043851,-1408.64,0.00018488,2]
[374685232,1753413043860,-460.0,0.00018488,2]
[374685233,1753413043870,-2590.99,0.00018488,2]
[374685234,1753413043880,-460.0,0.00018488,2]
[374685235,1753413043890,-460.0,0.00018488,2]
[374685236,1753413043900,-460.0,0.00018488,2]
[374685237,1753413043910,-460.0,0.00018488,2]
[374685238,1753413043919,-258.60328844,0.00018537,2]
[374685239,1753413043929,-151.0,0.00018598,2]
[374685240,1753413043939,-152.9570777,0.00018598,2]
[374685241,1753413043948,-151.0,0.00018598,2]
[374685242,1753413043958,-1022.0,0.00018598,2]
[374685243,1753413043967,-151.0,0.00018598,2]
[374685244,1753413043977,-198.71016698,0.00018598,2]
[374685245,1753413043987,-201.65785933,0.00018598,2]
[374685246,1753413043996,-151.0,0.00018598,2]
[374685247,1753413044006,-202.34537415,0.00018598,2]
[374685248,1753413044016,-901.0,0.00018598,2]
[374685249,1753413044026,-500.0,0.00018598,2]
[374685250,1753413044036,-151.0,0.00018598,2]
[374685251,1753413044046,-151.0,0.00018598,2]
[374685252,1753413044058,-151.0,0.00018598,2]
[374685253,1753413044068,-151.0,0.00018598,2]
[374685254,1753413044077,-526.33361954,0.00018627,2]
[374685255,1753413044091,-12627.2413641,0.00018627,2]
[374685256,1753413044104,-214.7599002,0.00018627,2]
[374685257,1753413044119,-500.0,0.00018733,2]
[374685258,1753413044132,-151.0,0.00018748,2]
[374685260,1753413044145,-170.39904145,0.00018748,2]
[374685261,1753413044159,-215.0738,0.00018748,2]
[374685262,1753413044171,-460.0,0.00018761,2]
[374685263,1753413044182,-460.0,0.00018761,2]
[374685264,1753413044196,-460.0,0.00018761,2]
[374685265,1753413044209,-460.0,0.00018761,2]
[374685267,1753413044221,-460.0,0.00018761,2]
[374685269,1753413044232,-460.0,0.00018761,2]
[374685271,1753413044243,-534.09,0.00018761,2]
[374685273,1753413044255,-3269.13,0.00018761,2]
[374685275,1753413044268,-460.0,0.00018761,2]
[374685277,1753413044279,-2004.64,0.00018761,2]
[374685280,1753413044291,-460.0,0.00018761,2]
[374685281,1753413044304,-460.0,0.00018761,2]
[374685282,1753413044315,-460.0,0.00018761,2]
[374685284,1753413044326,-460.0,0.00018761,2]
[374685286,1753413044338,-1273.31,0.00018761,2]
[374685287,1753413044350,-495.47,0.00018761,2]
[374685288,1753413044363,-1322.49,0.00018761,2]
[374685289,1753413044375,-460.0,0.00018761,2]
[374685290,1753413044387,-623.94,0.00018761,2]
[374685291,1753413044398,-460.0,0.00018761,2]
[374685292,1753413044409,-460.0,0.00018761,2]
[374685293,1753413044421,-460.0,0.00018761,2]
[374685294,1753413044433,-460.0,0.00018761,2]
[374685295,1753413044443,-460.0,0.00018761,2]
[374685296,1753413044455,-460.0,0.00018761,2]